[Event "Swiss Championship U14 2022"]
[Site "Biel"]
[Date "2022.07.18"]
[Round "2.5"]
[White "Guyer, Marlon"]
[Black "Breyer, Thierry"]
[Result "0-1"]
[ECO "B28"]
[WhiteElo "1590"]
[BlackElo "1683"]
[Annotator "NA RC COMBH"]
[PlyCount "88"]
[EventDate "2022.07.18"]
[EventType "swiss"]
[EventCountry "SUI"]
[SourceTitle "playchess.com"]
[Source "ChessBase"]
[SourceQuality "1"]
[TimeControl "5400+30"]

1. e4 {[%emt 0:00:03]} c5 {[%emt 0:00:05]} 2. Nf3 {[%emt 0:00:07]} a6 {[%emt 0:00:04]} 3. c4 {[%emt 0:00:09]} b6 {[%emt 0:00:15]} 4. Nc3 {[%emt 0:01:05]} Bb7 {[%emt 0:00:17]} 5. d4 {[%emt 0:01:00]} cxd4 {[%emt 0:00:03]} 6. Nxd4 {[%emt 0:00:21]} Qc7 {[%emt 0:01:01]} 7. Be3 {[%emt 0:04:27]} Nf6 {[%emt 0:00:18]} 8. f3 {[%emt 0:04:11]} e6 {[%emt 0:00:27]} 9. Qb3 {[%emt 0:11:42]} Bc5 {[%emt 0:16:11]} 10. Na4 {[%emt 0:03:35]} d6 {[%emt 0:03:23]} 11. Nxc5 {[%emt 0:01:40]} bxc5 {[%emt 0:00:40]} 12. Nc2 {[%emt 0:05:27]} Nc6 {[%emt 0:01:52]} 13. O-O-O {[%emt 0:04:02]} Ke7 {[%emt 0:09:25]} 14. Bf4 {[%emt 0:03:18]} Rhd8 {[%emt 0:01:44]} 15. Be2 {[%emt 0:02:35]} Nd4 {[%emt 0:06:18]} 16. Nxd4 {[%emt 0:14:05]} cxd4 {[%emt 0:00:14]} 17. Kb1 {[%emt 0:04:09]} Nd7 {[%emt 0:02:45]} 18. Qc2 {[%emt 0:05:54]} e5 {[%emt 0:01:19]} 19. Bg5+ {[%emt 0:01:46]} f6 {[%emt 0:00:19]} 20. Bd2 {[%emt 0:00:13]} a5 {[%emt 0:01:14]} 21. g4 {[%emt 0:07:22]} Rg8 {[%emt 0:11:54]} 22. h4 {[%emt 0:03:15]} Bc6 {[%emt 0:03:12]} 23. g5 {[%emt 0:02:17]} Raf8 {[%emt 0:03:57]} 24. Rh3 {[%emt 0:08:34]} Qb6 {[%emt 0:02:01]} 25. Rg3 {[%emt 0:02:06]} Nc5 {[%emt 0:14:06]} 26. Rdg1 {[%emt 0:01:41]} fxg5 {[%emt 0:03:57]} 27. hxg5 {[%emt 0:03:11]} Rb8 {[%emt 0:03:16]} 28. Bc1 {[%emt 0:02:05]} Rb7 {[%emt 0:05:55]} 29. R1g2 {[%emt 0:02:29]} Rgb8 {[%emt 0:01:32]} 30. Rh3 {[%emt 0:01:13]} a4 {[%emt 0:02:12]} 31. Rxh7 {[%emt 0:01:04]} Ke6 {[%emt 0:00:45]} 32. a3 {[%emt 0:00:37]} Qa5 {[%emt 0:03:30]} 33. Bf1 {[%emt 0:00:37]} Qe1 {[%emt 0:00:35]} 34. Ka2 {[%emt 0:00:37]} Qxf1 {[%emt 0:00:29]} 35. Rf2 {[%emt 0:00:18]} Qd3 {[%emt 0:00:18]} 36. Rhh2 {[%emt 0:00:39]} Qb3+ {[%emt 0:00:34]} 37. Qxb3 {[%emt 0:00:32]} Rxb3 {[%emt 0:00:24]} 38. Rh7 {[%emt 0:00:23]} Nd3 {[%emt 0:00:53]} 39. Rc2 {[%emt 0:00:34]} Nxc1+ {[%emt 0:00:13]} 40. Rxc1 {[%emt 0:00:01]} Rxb2+ {[%emt 0:00:20]} 41. Ka1 {[%emt 0:00:09]} R8b7 {[%emt 0:00:33]} 42. Rh4 {[%emt 0:00:53]} Rf2 {[%emt 0:00:31]} 43. Rb1 {[%emt 0:00:46]} Rxb1+ {[%emt 0:00:12]} 44. Kxb1 {[%emt 0:00:03]} Rxf3 {[%emt 0:00:12]} 0-1

[Event "Swiss Championship U14 2022"]
[Site "Biel"]
[Date "2022.07.18"]
[Round "2.6"]
[White "Bruessow, Nina"]
[Black "Haas, Anthony"]
[Result "0-1"]
[ECO "C42"]
[WhiteElo "1655"]
[BlackElo "1638"]
[Annotator "NA RC COMBH"]
[PlyCount "64"]
[EventDate "2022.07.18"]
[EventType "swiss"]
[EventCountry "SUI"]
[SourceTitle "playchess.com"]
[Source "ChessBase"]
[SourceQuality "1"]
[TimeControl "5400+30"]

1. e4 {[%emt 0:00:04]} e5 {[%emt 0:00:03]} 2. Nf3 {[%emt 0:00:11]} Nf6 {[%emt 0:00:02]} 3. Nxe5 {[%emt 0:00:13]} d6 {[%emt 0:00:04]} 4. Nf3 {[%emt 0:00:21]} Nxe4 {[%emt 0:00:03]} 5. Nc3 {[%emt 0:00:15]} Nxc3 {[%emt 0:00:03]} 6. dxc3 {[%emt 0:00:14]} Be7 {[%emt 0:00:06]} 7. Be3 {[%emt 0:00:20]} O-O {[%emt 0:00:34]} 8. Bd3 {[%emt 0:00:12]} Nd7 {[%emt 0:00:26]} 9. Qd2 {[%emt 0:00:18]} c6 {[%emt 0:00:36]} 10. h4 {[%emt 0:00:43]} d5 {[%emt 0:04:10]} 11. O-O-O {[%emt 0:03:53]} Nc5 {[%emt 0:02:38]} 12. Be2 {[%emt 0:05:30]} Ne4 {[%emt 0:05:10]} 13. Qe1 {[%emt 0:06:16]} Qa5 {[%emt 0:01:57]} 14. Kb1 {[%emt 0:01:34]} c5 {[%emt 0:16:48]} 15. Ng5 {[%emt 0:09:07]} Nf6 {[%emt 0:29:52]} 16. f3 {[%emt 0:07:56]} h6 {[%emt 0:02:47]} 17. Nh3 {[%emt 0:01:07]} Re8 {[%emt 0:07:05]} 18. g4 {[%emt 0:04:30]} Be6 {[%emt 0:06:53]} 19. Nf4 {[%emt 0:06:02]} Bd6 {[%emt 0:01:36]} 20. Nxe6 {[%emt 0:02:36]} Rxe6 {[%emt 0:00:09]} 21. g5 {[%emt 0:20:15]} Nh5 {[%emt 0:01:51]} 22. Rxd5 {[%emt 0:11:45]} Rxe3 {[%emt 0:02:34]} 23. Rxd6 {[%emt 0:03:15]} Rae8 {[%emt 0:00:26]} 24. Rd2 {[%emt 0:01:10]} Nf4 {[%emt 0:00:26]} 25. Qg3 {[%emt 0:02:11]} Nxe2 {[%emt 0:01:57]} 26. Qg4 {[%emt 0:00:18]} Qb6 {[%emt 0:00:43]} 27. Ka1 {[%emt 0:01:08]} Qe6 {[%emt 0:01:06]} 28. Qa4 {[%emt 0:02:23]} Ng3 {[%emt 0:00:43]} 29. Rg1 {[%emt 0:01:07]} Re1+ {[%emt 0:00:14]} 30. Rd1 {[%emt 0:00:06]} Rxg1 {[%emt 0:00:12]} 31. Rxg1 {[%emt 0:00:07]} Qe1+ {[%emt 0:00:04]} 32. Rxe1 {[%emt 0:00:06]} Rxe1# {[%emt 0:00:22]} 0-1

[Event "Swiss Championship U14 2022"]
[Site "Biel"]
[Date "2022.07.18"]
[Round "2.7"]
[White "Gade, Niels Severin"]
[Black "Artan, Tamir"]
[Result "0-1"]
[ECO "C50"]
[WhiteElo "1505"]
[BlackElo "1590"]
[Annotator "NA COMBH"]
[PlyCount "82"]
[EventDate "2022.07.18"]
[EventType "swiss"]
[EventCountry "SUI"]
[SourceTitle "playchess.com"]
[Source "ChessBase"]
[SourceQuality "1"]
[TimeControl "5400+30"]

1. e4 {[%emt 0:00:03]} e5 {[%emt 0:00:06]} 2. Nf3 {[%emt 0:00:04]} Nc6 {[%emt 0:00:04]} 3. Bc4 {[%emt 0:00:06]} Bc5 {[%emt 0:00:07]} 4. Nc3 {[%emt 0:00:19]} Nf6 {[%emt 0:00:10]} 5. d3 {[%emt 0:00:08]} d6 {[%emt 0:00:13]} 6. h3 {[%emt 0:00:11]} Na5 {[%emt 0:00:11]} 7. Bb3 {[%emt 0:00:20]} a6 {[%emt 0:00:13]} 8. Bg5 {[%emt 0:00:13]} Nxb3 {[%emt 0:00:16]} 9. axb3 {[%emt 0:00:09]} h6 {[%emt 0:00:17]} 10. Be3 {[%emt 0:00:53]} Bxe3 {[%emt 0:01:27]} 11. fxe3 {[%emt 0:00:07]} Bd7 {[%emt 0:00:59]} 12. O-O {[%emt 0:01:41]} Qe7 {[%emt 0:00:41]} 13. d4 {[%emt 0:00:49]} O-O-O {[%emt 0:00:39]} 14. dxe5 {[%emt 0:04:22]} dxe5 {[%emt 0:00:19]} 15. Nd5 {[%emt 0:01:16]} Nxd5 {[%emt 0:03:13]} 16. exd5 {[%emt 0:00:21]} g5 {[%emt 0:01:34]} 17. e4 {[%emt 0:05:36]} h5 {[%emt 0:00:32]} 18. Qd2 {[%emt 0:05:05]} g4 {[%emt 0:00:18]} 19. Ng5 {[%emt 0:00:35]} f6 {[%emt 0:00:19]} 20. d6 {[%emt 0:11:02]} cxd6 {[%emt 0:00:26]} 21. Qc3+ {[%emt 0:00:29]} Kb8 {[%emt 0:00:09]} 22. Qc4 {[%emt 0:07:03]} fxg5 {[%emt 0:00:24]} 23. Rf7 {[%emt 0:00:50]} Qe6 {[%emt 0:00:20]} 24. Qxe6 {[%emt 0:00:45]} Bxe6 {[%emt 0:00:08]} 25. Rf6 {[%emt 0:00:26]} Bc8 {[%emt 0:01:15]} 26. hxg4 {[%emt 0:00:32]} Bxg4 {[%emt 0:00:20]} 27. Raf1 {[%emt 0:00:22]} Rh7 {[%emt 0:01:39]} 28. Rg6 {[%emt 0:00:37]} Rc7 {[%emt 0:00:28]} 29. c3 {[%emt 0:00:19]} d5 {[%emt 0:00:31]} 30. exd5 {[%emt 0:01:31]} Rxd5 {[%emt 0:00:22]} 31. Rxg5 {[%emt 0:00:25]} Rd2 {[%emt 0:00:24]} 32. Rf2 {[%emt 0:03:40]} Rd1+ {[%emt 0:00:45]} 33. Kh2 {[%emt 0:01:35]} Re7 {[%emt 0:00:20]} 34. c4 {[%emt 0:03:48]} e4 {[%emt 0:00:11]} 35. Rg8+ {[%emt 0:00:42]} Ka7 {[%emt 0:00:14]} 36. Rff8 {[%emt 0:00:16]} Kb6 {[%emt 0:00:49]} 37. Re8 {[%emt 0:01:10]} Rxe8 {[%emt 0:00:38]} 38. Rxe8 {[%emt 0:00:11]} Re1 {[%emt 0:00:09]} 39. b4 {[%emt 0:01:33]} e3 {[%emt 0:00:15]} 40. Re7 {[%emt 0:03:42]} e2 {[%emt 0:00:24]} 41. c5+ {[%emt 0:00:17]} Kc6 {[%emt 0:04:27]} 0-1

[Event "Swiss Championship U14 2022"]
[Site "Biel"]
[Date "2022.07.18"]
[Round "2.8"]
[White "Stoll, Arturo"]
[Black "Delangle, Alexander"]
[Result "1-0"]
[ECO "C52"]
[WhiteElo "1434"]
[BlackElo "1612"]
[Annotator "NA RC COMBH"]
[PlyCount "171"]
[EventDate "2022.07.18"]
[EventType "swiss"]
[EventCountry "SUI"]
[SourceTitle "playchess.com"]
[Source "ChessBase"]
[SourceQuality "1"]
[TimeControl "5400+30"]

1. e4 {[%emt 0:00:07]} e5 {[%emt 0:00:06]} 2. Nf3 {[%emt 0:00:40]} Nc6 {[%emt 0:00:04]} 3. Bc4 {[%emt 0:00:14]} Bc5 {[%emt 0:00:16]} 4. b4 {[%emt 0:00:15]} Bxb4 {[%emt 0:00:10]} 5. c3 {[%emt 0:00:11]} Ba5 {[%emt 0:00:59]} 6. d4 {[%emt 0:00:43]} d6 {[%emt 0:00:00]} 7. Qb3 {[%emt 0:00:21]} Qd7 {[%emt 0:01:31]} 8. O-O {[%emt 0:01:40]} Bb6 {[%emt 0:04:30]} 9. Bb5 {[%emt 0:01:59]} exd4 {[%emt 0:02:43]} 10. cxd4 {[%emt 0:00:24]} a6 {[%emt 0:04:22]} 11. Ba4 {[%emt 0:00:43]} Ba7 {[%emt 0:05:46]} 12. d5 {[%emt 0:00:17]} b5 {[%emt 0:00:23]} 13. dxc6 {[%emt 0:00:18]} Qxc6 {[%emt 0:00:44]} 14. Qc2 {[%emt 0:00:00]} Bb7 {[%emt 0:03:19]} 15. Qxc6+ {[%emt 0:00:22]} Bxc6 {[%emt 0:00:04]} 16. Bc2 {[%emt 0:00:10]} Nf6 {[%emt 0:00:51]} 17. Nbd2 {[%emt 0:02:13]} O-O {[%emt 0:01:58]} 18. Bb2 {[%emt 0:01:27]} Nd7 {[%emt 0:00:00]} 19. Bd4 {[%emt 0:02:11]} Nc5 {[%emt 0:01:00]} 20. Bxc5 {[%emt 0:01:59]} Bxc5 {[%emt 0:00:45]} 21. a4 {[%emt 0:00:45]} Rfe8 {[%emt 0:01:30]} 22. Rfc1 {[%emt 0:03:52]} Re7 {[%emt 0:05:23]} 23. e5 {[%emt 0:03:05]} Rae8 {[%emt 0:01:11]} 24. Ne4 {[%emt 0:00:00]} Bxe4 {[%emt 0:01:06]} 25. Bxe4 {[%emt 0:00:00]} b4 {[%emt 0:03:46]} 26. Bd3 {[%emt 0:01:28]} a5 {[%emt 0:00:00]} 27. Bb5 {[%emt 0:01:27]} Rb8 {[%emt 0:00:36]} 28. exd6 {[%emt 0:01:04]} cxd6 {[%emt 0:01:01]} 29. Re1 {[%emt 0:00:21]} Kf8 {[%emt 0:01:52]} 30. Rxe7 {[%emt 0:00:27]} Kxe7 {[%emt 0:00:05]} 31. Nd2 {[%emt 0:00:32]} d5 {[%emt 0:01:37]} 32. Nb3 {[%emt 0:01:13]} Bb6 {[%emt 0:01:15]} 33. Kf1 {[%emt 0:01:37]} Rc8 {[%emt 0:01:49]} 34. Rc1 {[%emt 0:00:13]} Rc3 {[%emt 0:02:50]} 35. Rxc3 {[%emt 0:00:57]} bxc3 {[%emt 0:00:00]} 36. Bd3 {[%emt 0:00:15]} h6 {[%emt 0:00:58]} 37. Ke2 {[%emt 0:00:30]} Kd6 {[%emt 0:04:30]} 38. Bc2 {[%emt 0:03:57]} d4 {[%emt 0:00:00]} 39. Kd3 {[%emt 0:01:02]} Kd5 {[%emt 0:02:03]} 40. Bd1 {[%emt 0:01:30]} g5 {[%emt 0:01:49]} 41. g4 {[%emt 0:01:43]} Ke5 {[%emt 0:01:30]} 42. h3 {[%emt 0:03:10]} f6 {[%emt 0:08:14]} 43. Kc4 {[%emt 0:06:22]} Ke4 {[%emt 0:01:38]} 44. Bc2+ {[%emt 0:04:12]} Kf3 {[%emt 0:00:00]} 45. Nxd4+ {[%emt 0:01:39]} Kg2 {[%emt 0:01:51]} 46. Nf5 {[%emt 0:01:18]} Bxf2 {[%emt 0:00:00]} 47. Kxc3 {[%emt 0:01:15]} Kxh3 {[%emt 0:00:25]} 48. Nxh6 {[%emt 0:00:13]} Kg3 {[%emt 0:02:58]} 49. Bf5 {[%emt 0:00:17]} Kf4 {[%emt 0:02:12]} 50. Kc4 {[%emt 0:03:47]} Bb6 {[%emt 0:00:30]} 51. Kd5 {[%emt 0:00:00]} Ke3 {[%emt 0:02:19]} 52. Ke6 {[%emt 0:03:19]} Bd8 {[%emt 0:00:23]} 53. Ng8 {[%emt 0:01:02]} Kf3 {[%emt 0:01:50]} 54. Nxf6 {[%emt 0:00:09]} Kf4 {[%emt 0:00:44]} 55. Ne8 {[%emt 0:01:31]} Kg3 {[%emt 0:00:05]} 56. Nd6 {[%emt 0:01:22]} Bb6 {[%emt 0:01:44]} 57. Kf6 {[%emt 0:01:04]} Kf4 {[%emt 0:01:25]} 58. Nf7 {[%emt 0:00:17]} Bc7 {[%emt 0:00:12]} 59. Bd7 {[%emt 0:00:38]} Bb6 {[%emt 0:01:21]} 60. Kg6 {[%emt 0:02:06]} Be3 {[%emt 0:00:30]} 61. Nxg5 {[%emt 0:00:57]} Bc1 {[%emt 0:00:38]} 62. Nh7 {[%emt 0:00:10]} Ke5 {[%emt 0:00:50]} 63. g5 {[%emt 0:00:00]} Kd6 {[%emt 0:00:52]} 64. Bb5 {[%emt 0:00:00]} Ke7 {[%emt 0:01:31]} 65. Kg7 {[%emt 0:00:00]} Bb2+ {[%emt 0:00:42]} 66. Kg8 {[%emt 0:00:58]} Ba1 {[%emt 0:00:17]} 67. g6 {[%emt 0:00:28]} Bb2 {[%emt 0:00:43]} 68. g7 {[%emt 0:00:37]} Ba1 {[%emt 0:00:31]} 69. Nf8 {[%emt 0:00:00]} Kd6 {[%emt 0:01:47]} 70. Kf7 {[%emt 0:00:38]} Bxg7 {[%emt 0:00:18]} 71. Kxg7 {[%emt 0:00:00]} Kc5 {[%emt 0:00:06]} 72. Kf6 {[%emt 0:00:13]} Kb6 {[%emt 0:00:10]} 73. Nd7+ {[%emt 0:00:08]} Kb7 {[%emt 0:00:09]} 74. Ke7 {[%emt 0:00:00]} Ka7 {[%emt 0:00:05]} 75. Kd6 {[%emt 0:00:18]} Kb7 {[%emt 0:00:20]} 76. Bc6+ {[%emt 0:00:00]} Kc8 {[%emt 0:00:17]} 77. Bd5 {[%emt 0:00:00]} Kd8 {[%emt 0:01:12]} 78. Bf7 {[%emt 0:00:00]} Kc8 {[%emt 0:00:40]} 79. Ne5 {[%emt 0:00:09]} Kb7 {[%emt 0:00:52]} 80. Nc6 {[%emt 0:00:00]} Kb6 {[%emt 0:00:38]} 81. Be6 {[%emt 0:00:00]} Ka6 {[%emt 0:00:17]} 82. Bc8+ {[%emt 0:00:00]} Kb6 {[%emt 0:00:00]} 83. Nd4 {[%emt 0:00:00]} Ka7 {[%emt 0:00:00]} 84. Kc7 {[%emt 0:00:00]} Ka8 {[%emt 0:00:00]} 85. Bb7+ {[%emt 0:00:00]} Ka7 {[%emt 0:00:00]} 86. Nc6# {[%emt 0:00:07]} 1-0

[Event "Swiss Championship U14 2022"]
[Site "Biel"]
[Date "2022.07.19"]
[Round "3.1"]
[White "Arsenie, Cristian Marc"]
[Black "Mattenberger, Matthias"]
[Result "1/2-1/2"]
[ECO "B90"]
[WhiteElo "2001"]
[BlackElo "2005"]
[Annotator "TA"]
[PlyCount "65"]
[EventDate "2022.07.18"]
[EventType "swiss"]
[EventCountry "SUI"]
[SourceTitle "playchess.com"]
[Source "ChessBase"]
[SourceQuality "1"]
[TimeControl "5400+30"]

{[%evp 13,65,0,0,0,10,10,7,1,10,23,15,13,37,37,36,42,47,22,9,2,3,0,0,-43,-43,-48,-38,-58,-15,-14,-14,-24,-8,-20,0,-1,-1,-1,-4,-5,0,-9,0,0,18,12,22,19,15,19,24,12,50,57]} 1. e4 {[%emt 0:00:02]} c5 {[%emt 0:00:12]} 2. Nf3 {[%emt 0:00:12]} d6 {[%emt 0:00:04]} 3. d4 {[%emt 0:00:35]} cxd4 {[%emt 0:00:07]} 4. Nxd4 {[%emt 0:00:05]} Nf6 {[%emt 0:00:12]} 5. Nc3 {[%emt 0:00:04]} a6 {[%emt 0:00:04]} 6. Rg1 {[%emt 0:00:21]} e5 {[%emt 0:03:57]} 7. Nb3 {[%emt 0:00:02]} Be6 {[%emt 0:04:13]} 8. g4 {[%emt 0:00:08] B90: Sicilian Najdorf: Unusual White 6th moves, 6 Be3 Ng4 and 6 Be3 e5.} d5 {[%emt 0:02:23]} 9. exd5 {[%emt 0:00:07]} Nxd5 {[%emt 0:00:51]} 10. Nxd5 {[%emt 0:00:08] The position is equal.} Qxd5 {[%emt 0:03:34]} 11. Qxd5 {[%emt 0:00:20]} Bxd5 {[%emt 0:00:06]} 12. Be3 {[%emt 0:00:10]} Be7 {[%emt 0:08:28]} 13. O-O-O {[%emt 0:04:08]} Bf3 {[%emt 0:02:35]} 14. Rd2 {[%emt 0:09:44] [#]} Nd7 $146 {[%emt 0:12:40][%cal Bb8d7,Bd7f6,Bf6d5,Bd5e3][%mdl 32]} ({Predecessor:} 14... Nc6 15. Rg3 e4 16. Be2 Ne5 17. Nd4 Bxe2 18. Rxe2 O-O-O 19. Nf5 Bf6 20. g5 g6 {1-0 (35) Omorjan,D (2254)-Bilic,M (2041) Kragujevac 2019}) 15. Bg2 {[%emt 0:06:45]} Bxg2 {[%emt 0:00:43]} 16. Rxg2 {[%emt 0:00:01]} O-O-O {[%emt 0:04:40]} 17. c3 {[%emt 0:10:13]} Nf6 {[%emt 0:06:04]} 18. Bb6 {[%emt 0:02:58]} Rxd2 {[%emt 0:00:28]} 19. Nxd2 {[%emt 0:06:48]} Nd5 {[%emt 0:01:34]} 20. Be3 {[%emt 0:00:13]} Nxe3 {[%emt 0:00:43]} 21. fxe3 $15 {[%emt 0:00:08][%mdl 4096] Endgame KRB-KRN} Kd7 {[%emt 0:00:25]} 22. Kc2 {[%emt 0:09:41]} Ke6 {[%emt 0:00:38]} 23. a4 {[%emt 0:01:59]} Rc8 {[%emt 0:06:26]} 24. Kd3 {[%emt 0:03:00]} b5 {[%emt 0:02:54]} 25. axb5 {[%emt 0:01:34]} axb5 {[%emt 0:00:13]} 26. Rg1 {[%emt 0:02:13]} Rd8+ {[%emt 0:01:35]} 27. Kc2 {[%emt 0:00:50]} Bc5 {[%emt 0:01:26]} 28. Re1 {[%emt 0:01:42]} f6 {[%emt 0:00:31]} 29. b4 {[%emt 0:02:29]} Bb6 {[%emt 0:00:34]} 30. c4 {[%emt 0:03:32]} bxc4 {[%emt 0:02:43]} 31. Nxc4 {[%emt 0:00:11]} Rc8 {[%emt 0:00:30]} 32. Kb3 {[%emt 0:00:16]} Bd8 {[%emt 0:07:11]} (32... Rb8 $5 {[%cal Rb6c5]}) 33. Ra1 {[%emt 0:05:49] Weighted Error Value: White=0.04 (flawless) /Black=0.09 (flawless)} 1/2-1/2

[Event "Swiss Championship U14 2022"]
[Site "Biel"]
[Date "2022.07.19"]
[Round "3.2"]
[White "Breyer, Philippe"]
[Black "Malli, Suvirr"]
[Result "1-0"]
[ECO "B29"]
[WhiteElo "1743"]
[BlackElo "1957"]
[Annotator "TA"]
[PlyCount "63"]
[EventDate "2022.07.18"]
[EventType "swiss"]
[EventCountry "SUI"]
[SourceTitle "playchess.com"]
[Source "ChessBase"]
[SourceQuality "1"]
[TimeControl "5400+30"]

{[%evp 9,62,-29,27,-44,-50,-117,-112,-138,-135,-142,-131,-154,-151,-249,-135,-135,-135,-135,-136,-131,-118,-125,-106,-126,-86,-71,0,-108,-76,-80,32,42,40,47,44,45,260,108,766,451,649,649,558,416,633,675,5120,1195,1698,793,29997,29998,29998,29999,29999]} 1. e4 {[%emt 0:00:04][%cal Be2e4,Be4e5][%mdl 32]} c5 {[%emt 0:00:12]} 2. Nf3 {[%emt 0:00:01]} Nc6 {[%emt 0:00:10]} 3. Nc3 {[%emt 0:00:34]} Nf6 {[%emt 0:01:28]} 4. e5 {[%emt 0:15:04]} Ng4 {[%emt 0:01:21]} 5. Qe2 {[%emt 0:02:24]} Qc7 {[%emt 0:04:08]} (5... f6 $142) 6. Nd5 {[%emt 0:00:36]} (6. Nb5 $11 Qb8 7. d4) 6... Qb8 $15 {[%emt 0:01:21]} 7. d3 {[%emt 0:00:41]} (7. d4 $15) 7... e6 $1 $17 {[%emt 0:00:49]} 8. h3 {[%emt 0:02:18] Black is better.} Ngxe5 {[%emt 0:00:30]} 9. Nxe5 {[%emt 0:00:30]} Nxe5 {[%emt 0:00:30]} (9... Qxe5 10. Qxe5 Nxe5 11. Nc7+ Kd8 12. Nxa8 $16) 10. f4 {[%emt 0:00:30]} Nc6 {[%emt 0:03:31] And now ...Nd4 would win.} (10... exd5 11. fxe5 Be7 12. Bf4 $15) 11. c3 {[%emt 0:02:11] Prevents Nd4.} (11. Nc3 $17) 11... Bd6 {[%emt 0:00:30]} ({Avoid the trap} 11... Kd8 $2 12. Ne3) (11... Qd6 $19 12. Ne3 Qxf4) 12. g3 {[%emt 0:02:49]} O-O {[%emt 0:02:48]} 13. Ne3 {[%emt 0:00:04]} Bc7 {[%emt 0:04:51]} 14. Bg2 {[%emt 0:00:27]} d5 {[%emt 0:00:46]} 15. O-O {[%emt 0:02:15]} b5 {[%emt 0:12:59]} 16. Qg4 {[%emt 0:03:34]} Qb6 {[%emt 0:10:24]} 17. f5 {[%emt 0:12:11]} Ne5 {[%emt 0:02:12]} (17... exf5 $1 $17 18. Nxf5 Bxf5 19. Qxf5 Ne7) 18. Qe2 {[%emt 0:00:55]} (18. Qh5 $1 $11 g6 19. Qh6 gxf5 20. g4) 18... Bb7 {[%emt 0:02:21]} 19. f6 {[%emt 0:02:27] [#] aiming for Qh5.} gxf6 {[%emt 0:08:49]} (19... g6 $1 $17) 20. Ng4 $14 {[%emt 0:14:01]} Nxg4 {[%emt 0:04:55]} 21. Qxg4+ {[%emt 0:00:37]} Kh8 {[%emt 0:00:05] Threatens to win with ...Rg8.} 22. Rxf6 {[%emt 0:02:23]} Rg8 $2 {[%emt 0:11:07] [#]} ({Better is} 22... Qd6 $1 $14) 23. Qh5 $40 {[%emt 0:00:25][%mdl 128] White wants a kill.} (23. Bg5 $1 $18 {is the precise move to win.} Rg7 24. Raf1) 23... Rg7 {[%emt 0:02:36][%mdl 8192]} (23... Raf8 $16) 24. Rxf7 {[%emt 0:11:16]} Rag8 {[%emt 0:01:36]} (24... e5 $142 25. Bg5 (25. Rxg7 Kxg7 26. Be3 Qg6 $16) 25... Qg6 26. Qxg6 Rxg6) 25. Rxg7 $18 {[%emt 0:02:06]} Rxg7 {[%emt 0:00:47]} 26. Bh6 {[%emt 0:02:06] Intending Rf1 and mate.} Rg8 {[%emt 0:03:06]} (26... e5 $142 27. Bxg7+ Kxg7) 27. Rf1 {[%emt 0:00:41] White wants to mate with Qf7.} ({Not} 27. Qf7 e5 $14) 27... Qd6 {[%emt 0:08:40]} 28. Rf7 {[%emt 0:01:13]} (28. Bg5 $142 Rxg5 29. Qxg5) 28... Rxg3 {[%emt 0:01:46]} 29. Rf8+ {[%emt 0:00:58]} (29. Kf1 $142 Rxg2 30. Rxh7+ Kxh7 31. Bf8+ Kg8 32. Bxd6) 29... Rg8 {[%emt 0:00:33]} 30. Rxg8+ {[%emt 0:00:06][%mdl 64] Back Rank. White mates.} Kxg8 {[%emt 0:00:11]} 31. Qe8+ {[%emt 0:00:03]} Qf8 {[%emt 0:00:11]} 32. Qxf8# {[%emt 0:00:03] Weighted Error Value: White=0.60/Black=0.95} 1-0

[Event "Swiss Championship U14 2022"]
[Site "Biel"]
[Date "2022.07.19"]
[Round "3.3"]
[White "Scherler, Julius"]
[Black "Breyer, Thierry"]
[Result "1-0"]
[ECO "B53"]
[WhiteElo "1971"]
[BlackElo "1683"]
[Annotator "TA"]
[PlyCount "77"]
[EventDate "2022.07.18"]
[EventType "swiss"]
[EventCountry "SUI"]
[SourceTitle "playchess.com"]
[Source "ChessBase"]
[SourceQuality "1"]
[TimeControl "5400+30"]

{[%evp 9,77,27,25,27,29,25,17,28,18,8,13,0,0,1,29,-44,22,-48,77,28,124,109,179,169,176,93,101,97,390,383,397,374,419,419,419,423,420,414,616,616,695,691,681,657,677,669,640,613,589,577,563,557,667,636,770,798,772,588,815,728,1046,839,831,678,927,919,1083,864,1501,1150]} 1. e4 {[%emt 0:00:59]} c5 {[%emt 0:00:07]} 2. Nf3 {[%emt 0:00:20]} d6 {[%emt 0:00:13]} 3. d4 {[%emt 0:00:27]} cxd4 {[%emt 0:00:07]} 4. Qxd4 {[%emt 0:00:20]} a6 {[%emt 0:00:08]} 5. Be2 {[%emt 0:00:09]} Nc6 {[%emt 0:00:09]} 6. Qe3 {[%emt 0:00:51] B53: Sicilian: 2...d6: Lines with Qxd4.} Nf6 {[%emt 0:00:15]} 7. O-O {[%emt 0:00:07]} g6 {[%emt 0:00:07]} 8. h3 {[%emt 0:00:04] The position is equal.} Bg7 {[%emt 0:00:07]} 9. Rd1 {[%emt 0:00:04]} Nd7 {[%emt 0:00:57] Prevents e5.} 10. Nc3 {[%emt 0:05:06]} O-O {[%emt 0:03:02]} 11. b3 {[%emt 0:00:50] [#]} Nb4 $146 {[%emt 0:15:23]} ({Predecessor:} 11... b6 12. Bb2 Bb7 13. Rab1 Rc8 14. Nd5 e6 15. Bxg7 Kxg7 16. Nf4 Qe7 17. Rd2 Rfd8 {0-1 (43) Ivanov,M (2360)-Wu,R (2176) Las Vegas 2021}) 12. Rd2 {[%emt 0:02:26]} ({Better is} 12. Qd2 $11) 12... Qc7 {[%emt 0:01:42]} (12... Qb6 $15 13. Bb2 Qxe3 14. fxe3 Nc5) 13. Bb2 {[%emt 0:00:53]} (13. Nd4 $1 $11) 13... Nf6 {[%emt 0:10:12]} (13... Qc5 $15 {stays ahead.}) 14. Rb1 {[%emt 0:03:54]} (14. Rad1 $1 $16) 14... e6 {[%emt 0:16:30]} (14... Qc5 $1 $11) 15. Ba3 $36 {[%emt 0:35:53][%mdl 2048] White has strong initiative.} Ng4 {[%emt 0:05:33]} 16. hxg4 $18 {[%emt 0:01:27]} Bxc3 {[%emt 0:00:39] [#]} 17. Rxd6 {[%emt 0:06:10][%mdl 512]} Nxc2 $16 {[%emt 0:09:24]} (17... b5 18. Rbd1) 18. Qc5 {[%emt 0:03:27]} Qe7 {[%emt 0:03:42][%mdl 8192] Loses the game.} 19. Rd3 $18 {[%emt 0:02:40]} ({Weaker is} 19. Qxc3 Nxa3 20. Rbd1 Nb5 21. Bxb5 axb5 $16) 19... Qxc5 {[%emt 0:09:01]} 20. Bxc5 {[%emt 0:00:03]} Bb4 {[%emt 0:01:49]} 21. Bxf8 {[%emt 0:00:11]} Bxf8 {[%emt 0:00:14]} 22. Rd8 {[%emt 0:01:12]} Nb4 {[%emt 0:02:24]} 23. Ne5 {[%emt 0:00:57]} Kg7 {[%emt 0:02:26]} (23... Nxa2 $142 24. Nc4 Nc3) 24. Rc1 {[%emt 0:02:05][%cal Bb1c1,Bc1c6,Bc6a6,Ba6a8,Ba8c8][%mdl 32] White is clearly winning.} Nc6 {[%emt 0:03:03]} 25. Nxc6 {[%emt 0:00:26]} bxc6 {[%emt 0:00:10]} 26. Rxc6 {[%emt 0:00:11]} Bb7 {[%emt 0:00:25]} 27. Rxa8 {[%emt 0:00:14]} Bxa8 {[%emt 0:00:43]} 28. Rxa6 {[%emt 0:00:29]} Bxe4 {[%emt 0:00:07][%mdl 4096] Endgame KRB-KB} 29. Bf3 {[%emt 0:00:45]} Bd3 {[%emt 0:00:34]} 30. Ra8 {[%emt 0:00:28]} Bc2 {[%emt 0:01:35]} 31. Rc8 {[%emt 0:01:07]} Bb1 {[%emt 0:00:40]} 32. a4 {[%emt 0:00:35]} Bb4 {[%emt 0:00:52]} 33. Rb8 {[%emt 0:00:11]} Bd6 {[%emt 0:00:11]} 34. Rd8 {[%emt 0:00:42]} Bc7 {[%emt 0:02:47]} 35. Rc8 {[%emt 0:00:16]} Bb6 {[%emt 0:00:29]} 36. Rb8 {[%emt 0:00:35]} Bc7 {[%emt 0:00:37]} 37. Rb7 {[%emt 0:00:07]} Bd8 {[%emt 0:01:19]} 38. b4 {[%emt 0:00:09] Hoping for a5.} Bc2 {[%emt 0:01:35]} 39. a5 {[%emt 0:00:22] Weighted Error Value: White=0.25 (precise) /Black=0.64} 1-0